[Event "Jeux du Barreau 2019"]
[Site "Paris, France"]
[Date "2019.07.10"]
[Round "7.1"]
[White "Aflalo, Sophie"]
[Black "Mungunkhuu, Mijgee"]
[Result "0-1"]
[TimeControl "15+3"]
[WhiteElo "2094"]
[BlackElo "2219"]

1. e4 {[%clk 00:15:04]} {[%emt 00:03:14]} d6 {[%clk 00:15:06]} 2. d4 {[%clk
00:15:05]} {[%emt 00:00:04]} Nd7 {[%clk 00:15:08]} 3. Be3 {[%clk 00:15:03]}
{[%emt 00:00:06]} c6 {[%clk 00:15:10]} {[%emt 00:00:01]} 4. Nd2 {[%clk
00:14:47]} {[%emt 00:00:18]} e5 {[%clk 00:15:11]} {[%emt 00:00:02]} 5. Qe2
{[%clk 00:14:34]} {[%emt 00:00:15]} Ngf6 {[%clk 00:15:12]} {[%emt 00:00:02]} 6.
O-O-O {[%clk 00:14:34]} {[%emt 00:00:04]} Be7 {[%clk 00:15:14]} 7. f4 {[%clk
00:14:31]} {[%emt 00:00:07]} Qc7 {[%clk 00:15:16]} {[%emt 00:00:01]} 8. g4
{[%clk 00:13:36]} {[%emt 00:00:58]} O-O {[%clk 00:15:16]} {[%emt 00:00:03]} 9.
g5 {[%clk 00:13:37]} {[%emt 00:00:02]} Ne8 {[%clk 00:15:11]} {[%emt 00:00:09]}
10. h4 {[%emt 00:00:32]} f5 {[%clk 00:14:56]} 11. exf5 Rxf5 {[%clk 00:14:57]}
12. Bh3 {[%clk 00:12:31]} {[%emt 00:00:02]} Rf8 {[%clk 00:14:59]} 13. dxe5
{[%clk 00:12:05]} {[%emt 00:00:30]} dxe5 {[%clk 00:14:50]} {[%emt 00:00:13]} 14.
f5 {[%clk 00:12:04]} {[%emt 00:00:04]} Nb6 {[%clk 00:14:52]} {[%emt 00:00:01]}
15. Ne4 {[%clk 00:08:16]} {[%emt 00:03:51]} Bxf5 {[%clk 00:14:41]} {[%emt
00:00:13]} 16. Bxf5 {[%clk 00:08:16]} {[%emt 00:00:03]} Rxf5 {[%clk 00:14:43]}
{[%emt 00:00:01]} 17. Qg4 {[%clk 00:08:15]} {[%emt 00:00:03]} Qc8 {[%clk
00:14:27]} {[%emt 00:00:19]} 18. Nf3 {[%clk 00:06:16]} {[%emt 00:02:02]} Nc4
{[%clk 00:13:57]} {[%emt 00:00:33]} 19. Nf6+ {[%clk 00:05:51]} {[%emt
00:00:28]} Rxf6 {[%clk 00:12:02]} {[%emt 00:01:58]} 20. Qxc4+ {[%clk 00:05:48]}
{[%emt 00:00:06]} Qe6 {[%clk 00:12:03]} {[%emt 00:00:01]} 21. Qe2 {[%clk
00:05:10]} {[%emt 00:00:40]} Rf7 {[%clk 00:11:55]} {[%emt 00:00:12]} 22. Bd4
{[%emt 00:00:39]} e4 {[%clk 00:09:59]} {[%emt 00:01:57]} 23. Ne5 {[%clk
00:04:36]} {[%emt 00:00:03]} Rf5 {[%clk 00:10:01]} {[%emt 00:00:02]} 24. Nc4
{[%clk 00:04:25]} {[%emt 00:00:14]} Nd6 {[%emt 00:00:37]} 25. Ne3 {[%clk
00:04:00]} {[%emt 00:00:22]} Ra5 {[%clk 00:09:24]} {[%emt 00:00:12]} 26. a3
{[%clk 00:02:14]} {[%emt 00:01:48]} Nb5 {[%clk 00:09:24]} {[%emt 00:00:04]} 27.
Nc4 {[%clk 00:02:15]} {[%emt 00:00:01]} Ra4 {[%clk 00:09:23]} {[%emt 00:00:04]}
28. b3 {[%clk 00:01:36]} {[%emt 00:00:42]} Nxa3 {[%clk 00:09:23]} {[%emt
00:00:03]} 29. bxa4 {[%clk 00:01:23]} {[%emt 00:00:17]} Nxc4 {[%clk 00:09:24]}
{[%emt 00:00:01]} 30. Rd3 {[%clk 00:01:13]} {[%emt 00:00:13]} Qd5 {[%clk
00:08:38]} {[%emt 00:00:50]} 31. Rc3 {[%clk 00:01:00]} b5 {[%clk 00:08:15]}
{[%emt 00:00:42]} 32. Rd1 {[%clk 00:00:59]} Qe6 {[%clk 00:07:56]} {[%emt
00:00:27]} 33. Rb3 {[%clk 00:00:46]} a6 {[%clk 00:07:37]} {[%emt 00:00:38]} 34.
Re1 {[%clk 00:00:34]} Re8 {[%clk 00:07:39]} {[%emt 00:00:15]} 35. Kb1 {[%emt
00:00:20]} Bd6 {[%clk 00:07:33]} {[%emt 00:00:02]} 36. Bc3 {[%emt 00:00:02]}
Bc5 {[%clk 00:07:28]} {[%emt 00:00:08]} 37. Bb4 {[%clk 00:00:15]} {[%emt
00:00:13]} Bxb4 {[%clk 00:07:29]} {[%emt 00:00:03]} 38. Rxb4 {[%clk 00:00:17]}
{[%emt 00:00:01]} e3 {[%clk 00:07:12]} {[%emt 00:00:19]} 39. Rd1 {[%clk
00:00:08]} {[%emt 00:00:12]} c5 {[%clk 00:07:10]} {[%emt 00:00:05]} 40. Rxc4
{[%clk 00:00:04]} {[%emt 00:00:08]} bxc4 {[%clk 00:07:08]} {[%emt 00:00:04]} 41.
c3 {[%clk 00:00:06]} {[%emt 00:00:01]} Qb6+ {[%clk 00:06:55]} {[%emt 00:00:16]}
42. Kc1 {[%clk 00:00:05]} {[%emt 00:00:05]} Qb3 {[%clk 00:06:56]} {[%emt
00:00:02]} 43. Qc2 {[%clk 00:00:06]} {[%emt 00:00:01]} Qa3+ {[%clk 00:06:44]}
{[%emt 00:00:15]} 44. Qb2 {[%clk 00:00:05]} {[%emt 00:00:04]} Qxa4 {[%clk
00:06:37]} {[%emt 00:00:10]} 45. Re1 {[%clk 00:00:07]} {[%emt 00:00:02]} Qb3
{[%clk 00:06:36]} {[%emt 00:00:03]} 46. Qxb3 {[%clk 00:00:05]} {[%emt
00:00:06]} cxb3 47. c4 a5 {[%clk 00:06:40]} 48. Kb2 {[%clk 00:00:09]} {[%emt
00:00:01]} a4 {[%clk 00:06:43]} {[%emt 00:00:01]} 49. Ka3 {[%clk 00:00:12]} e2
{[%clk 00:06:38]} {[%emt 00:00:07]} 50. Kxa4 {[%clk 00:00:14]} {[%emt
00:00:02]} b2 {[%clk 00:06:40]} {[%emt 00:00:01]} 51. Kb5 {[%clk 00:00:07]}
{[%emt 00:00:10]} b1=Q+ {[%clk 00:06:39]} {[%emt 00:00:04]} 52. Rxb1 {[%clk
00:00:07]} {[%emt 00:00:03]} e1=Q {[%clk 00:06:38]} {[%emt 00:00:04]} 53. Rxe1
{[%clk 00:00:08]} {[%emt 00:00:02]} Rxe1 {[%clk 00:06:40]} 0-1

[Event "Jeux du Barreau 2019"]
[Site "Paris, France"]
[Date "2019.07.10"]
[Round "7.2"]
[White "Rachid, Danial"]
[Black "Chanel, Virgile"]
[Result "0-1"]
[TimeControl "15+3"]
[WhiteElo "2020"]
[BlackElo "1991"]

1. e4 {[%clk 00:15:05]} d6 {[%clk 00:15:00]} {[%emt 00:00:06]} 2. Nf3 {[%clk
00:15:06]} Nf6 {[%clk 00:15:00]} 3. Nc3 {[%clk 00:15:06]} e5 {[%clk 00:15:00]}
4. Bb5+ {[%clk 00:15:06]} c6 {[%clk 00:15:00]} 5. Ba4 {[%clk 00:15:06]} Be7
{[%clk 00:15:01]} {[%emt 00:41:57]} 6. d3 {[%clk 00:14:50]} {[%emt 00:00:02]}
O-O {[%clk 00:15:01]} {[%emt 00:00:04]} 7. h3 {[%clk 00:14:51]} {[%emt
00:00:01]} Nbd7 {[%clk 00:14:57]} {[%emt 00:00:07]} 8. O-O {[%clk 00:14:52]}
{[%emt 00:00:03]} Nc5 {[%clk 00:14:38]} {[%emt 00:00:21]} 9. Bb3 {[%clk
00:14:37]} {[%emt 00:00:18]} Qc7 {[%clk 00:14:13]} {[%emt 00:00:27]} 10. Nh2
{[%clk 00:14:14]} {[%emt 00:00:27]} Nxb3 {[%clk 00:13:22]} {[%emt 00:00:55]} 11.
axb3 {[%clk 00:14:13]} {[%emt 00:00:03]} d5 {[%clk 00:13:15]} {[%emt 00:00:10]}
12. f4 {[%clk 00:14:03]} {[%emt 00:00:13]} dxe4 {[%clk 00:12:53]} {[%emt
00:00:26]} 13. dxe4 {[%clk 00:13:53]} {[%emt 00:00:13]} b5 {[%clk 00:10:58]}
{[%emt 00:01:58]} 14. Qf3 {[%clk 00:12:00]} {[%emt 00:01:55]} Nd7 {[%clk
00:10:30]} {[%emt 00:00:31]} 15. Ng4 {[%clk 00:11:15]} {[%emt 00:00:49]} f6
{[%clk 00:10:20]} {[%emt 00:00:13]} 16. Qg3 {[%clk 00:10:40]} {[%emt 00:00:38]}
Kh8 {[%clk 00:08:54]} {[%emt 00:01:29]} 17. Be3 {[%clk 00:07:28]} {[%emt
00:03:15]} Bc5 {[%clk 00:07:06]} {[%emt 00:01:50]} 18. fxe5 {[%clk 00:06:24]}
{[%emt 00:01:08]} Bxe3+ {[%clk 00:07:07]} {[%emt 00:00:02]} 19. Nxe3 {[%clk
00:05:59]} {[%emt 00:00:28]} Nxe5 {[%clk 00:06:59]} {[%emt 00:00:11]} 20. Nf5
{[%clk 00:05:39]} {[%emt 00:00:23]} Bxf5 {[%clk 00:06:55]} {[%emt 00:00:06]} 21.
Rxf5 {[%clk 00:05:25]} {[%emt 00:00:17]} Rad8 {[%clk 00:06:29]} {[%emt
00:00:29]} 22. Raf1 {[%clk 00:04:40]} {[%emt 00:00:49]} Qe7 {[%clk 00:05:47]}
{[%emt 00:00:44]} 23. Qe3 {[%clk 00:04:23]} {[%emt 00:00:20]} Rfe8 {[%clk
00:05:34]} {[%emt 00:00:16]} 24. g4 {[%clk 00:04:03]} {[%emt 00:00:23]} h6
{[%clk 00:04:23]} {[%emt 00:01:14]} 25. Ne2 {[%clk 00:03:00]} {[%emt 00:01:06]}
Nf7 {[%clk 00:03:26]} {[%emt 00:01:00]} 26. Ng3 {[%clk 00:02:19]} {[%emt
00:00:44]} Ng5 {[%clk 00:02:47]} {[%emt 00:00:43]} 27. e5 {[%clk 00:00:31]}
{[%emt 00:01:50]} Nxh3+ {[%clk 00:02:16]} {[%emt 00:00:35]} 28. Kg2 {[%clk
00:00:18]} {[%emt 00:00:16]} Ng5 {[%clk 00:02:18]} 29. Qc1 {[%clk 00:00:05]}
{[%emt 00:00:16]} fxe5 {[%emt 00:00:23]} 0-1

[Event "Jeux du Barreau 2019"]
[Site "Paris, France"]
[Date "2019.07.10"]
[Round "7.3"]
[White "Vandeweeghe, Simon"]
[Black "Gautier, Joel"]
[Result "1-0"]
[TimeControl "15+3"]
[WhiteElo "2036"]
[BlackElo "1975"]

1. d4 {[%clk 00:15:04]} {[%emt 00:00:01]} e6 {[%clk 00:15:04]} {[%emt
00:00:03]} 2. c4 {[%clk 00:15:05]} {[%emt 00:00:02]} f5 {[%clk 00:15:06]}
{[%emt 00:00:01]} 3. g3 {[%clk 00:14:59]} {[%emt 00:00:09]} Nf6 {[%emt
00:00:05]} 4. Bg2 {[%clk 00:14:59]} {[%emt 00:00:01]} Be7 {[%clk 00:15:06]}
{[%emt 00:00:03]} 5. Nc3 {[%clk 00:14:55]} {[%emt 00:00:06]} O-O {[%clk
00:15:05]} {[%emt 00:00:04]} 6. Nf3 {[%clk 00:14:32]} {[%emt 00:00:27]} d6
{[%clk 00:14:57]} {[%emt 00:00:11]} 7. O-O {[%clk 00:14:30]} {[%emt 00:00:04]}
Ne4 {[%clk 00:14:56]} {[%emt 00:00:04]} 8. Qc2 {[%clk 00:13:48]} {[%emt
00:00:45]} Nxc3 {[%clk 00:14:48]} {[%emt 00:00:11]} 9. Qxc3 {[%clk 00:13:30]}
{[%emt 00:00:21]} a5 {[%clk 00:14:48]} {[%emt 00:00:03]} 10. b3 {[%clk
00:11:24]} {[%emt 00:02:09]} Bf6 {[%clk 00:14:46]} {[%emt 00:00:05]} 11. Bb2
{[%clk 00:11:20]} {[%emt 00:00:07]} Nc6 {[%clk 00:14:42]} {[%emt 00:00:07]} 12.
Qd2 {[%clk 00:11:13]} {[%emt 00:00:10]} Qe8 {[%clk 00:13:48]} {[%emt 00:00:57]}
13. d5 {[%clk 00:10:26]} {[%emt 00:00:49]} Bxb2 {[%clk 00:13:03]} {[%emt
00:00:48]} 14. Qxb2 {[%clk 00:10:27]} {[%emt 00:00:02]} Nb4 {[%clk 00:12:53]}
{[%emt 00:00:13]} 15. dxe6 {[%clk 00:08:58]} {[%emt 00:01:32]} Bxe6 {[%clk
00:12:26]} {[%emt 00:00:30]} 16. Ng5 {[%clk 00:08:27]} {[%emt 00:00:34]} Bc8
{[%clk 00:11:51]} {[%emt 00:00:39]} 17. a3 {[%clk 00:08:23]} {[%emt 00:00:07]}
Nc6 {[%clk 00:10:50]} {[%emt 00:01:04]} 18. Rad1 {[%clk 00:06:57]} {[%emt
00:01:29]} Qg6 {[%clk 00:09:28]} {[%emt 00:01:24]} 19. Nh3 {[%clk 00:04:34]}
{[%emt 00:02:26]} f4 {[%clk 00:08:37]} {[%emt 00:00:55]} 20. Qd2 {[%clk
00:04:28]} {[%emt 00:00:08]} f3 {[%clk 00:06:10]} {[%emt 00:02:30]} 21. exf3
{[%clk 00:04:09]} {[%emt 00:00:22]} Ne5 {[%clk 00:06:11]} {[%emt 00:00:03]} 22.
Ng5 {[%clk 00:02:18]} {[%emt 00:01:53]} h6 {[%clk 00:05:29]} {[%emt 00:00:46]}
23. f4 {[%clk 00:02:17]} {[%emt 00:00:04]} Ng4 {[%clk 00:02:01]} {[%emt
00:03:31]} 24. Nf3 {[%clk 00:01:48]} {[%emt 00:00:32]} Nf6 {[%clk 00:01:28]}
{[%emt 00:00:36]} 25. Rfe1 {[%clk 00:01:30]} {[%emt 00:00:20]} Bg4 {[%clk
00:01:07]} {[%emt 00:00:25]} 26. h3 {[%clk 00:01:10]} {[%emt 00:00:23]} Bf5
{[%clk 00:00:55]} {[%emt 00:00:15]} 27. Nh4 {[%clk 00:01:03]} {[%emt 00:00:08]}
Qh5 {[%clk 00:00:56]} {[%emt 00:00:03]} 28. Nxf5 {[%clk 00:00:52]} {[%emt
00:00:15]} Qxf5 {[%clk 00:00:57]} {[%emt 00:00:01]} 29. Qd3 {[%clk 00:00:20]}
{[%emt 00:00:35]} Qd7 {[%clk 00:00:52]} {[%emt 00:00:08]} 30. Kh2 {[%clk
00:00:20]} {[%emt 00:00:03]} Rae8 {[%clk 00:00:48]} {[%emt 00:00:07]} 31. Re3
{[%clk 00:00:20]} {[%emt 00:00:03]} Rxe3 {[%emt 00:00:09]} 32. fxe3 {[%clk
00:00:20]} {[%emt 00:00:01]} Re8 {[%clk 00:00:43]} {[%emt 00:00:05]} 33. e4
{[%clk 00:00:22]} {[%emt 00:00:01]} Qe7 {[%clk 00:00:34]} {[%emt 00:00:12]} 34.
Re1 {[%clk 00:00:22]} {[%emt 00:00:03]} Nd7 {[%clk 00:00:34]} {[%emt 00:00:03]}
35. Qd5+ {[%clk 00:00:23]} {[%emt 00:00:02]} Kh8 {[%clk 00:00:35]} {[%emt
00:00:01]} 36. Qxb7 {[%clk 00:00:24]} {[%emt 00:00:02]} Nc5 {[%clk 00:00:36]}
{[%emt 00:00:02]} 37. Qd5 {[%clk 00:00:16]} {[%emt 00:00:12]} Rb8 {[%clk
00:00:12]} {[%emt 00:00:28]} 38. e5 {[%clk 00:00:09]} {[%emt 00:00:09]} Rxb3
{[%clk 00:00:12]} {[%emt 00:00:03]} 39. Qa8+ {[%clk 00:00:04]} {[%emt
00:00:08]} Kh7 {[%clk 00:00:10]} {[%emt 00:00:05]} 40. Qxa5 {[%clk 00:00:05]}
{[%emt 00:00:02]} dxe5 41. Rxe5 Qd6 {[%emt 00:00:06]} 42. Qxc5 {[%emt
00:00:01]} Qd7 {[%emt 00:00:08]} 43. Re7 Qxe7 44. Qa5 {[%emt 00:00:05]} 1-0

[Event "Jeux du Barreau 2019"]
[Site "Paris, France"]
[Date "2019.07.10"]
[Round "7.4"]
[White "Beaulier, Benjamin"]
[Black "Spirta, Boris"]
[Result "1-0"]
[TimeControl "15+3"]
[WhiteElo "1658"]
[BlackElo "1811"]

1. e4 {[%clk 00:15:05]} {[%emt 00:17:12]} c5 {[%clk 00:15:04]} {[%emt
00:00:03]} 2. d3 {[%clk 00:15:07]} {[%emt 00:00:01]} d6 {[%clk 00:14:30]}
{[%emt 00:00:37]} 3. g3 {[%clk 00:15:09]} {[%emt 00:00:01]} g6 {[%clk
00:14:06]} {[%emt 00:00:27]} 4. Bg2 {[%clk 00:15:10]} {[%emt 00:00:02]} Bg7
{[%clk 00:14:04]} {[%emt 00:00:04]} 5. f4 {[%clk 00:15:12]} Nc6 {[%clk
00:12:55]} {[%emt 00:01:14]} 6. Nf3 {[%clk 00:15:13]} {[%emt 00:00:02]} Bg4
{[%clk 00:11:02]} {[%emt 00:01:56]} 7. O-O {[%clk 00:15:14]} {[%emt 00:00:02]}
Qd7 {[%clk 00:09:26]} {[%emt 00:01:39]} 8. c3 {[%clk 00:15:13]} {[%emt
00:00:04]} Bh3 {[%clk 00:08:09]} {[%emt 00:01:20]} 9. Na3 {[%clk 00:14:36]}
{[%emt 00:00:42]} Bxg2 {[%clk 00:07:56]} {[%emt 00:00:15]} 10. Kxg2 {[%clk
00:14:38]} Nf6 {[%clk 00:06:15]} {[%emt 00:01:45]} 11. Nc2 {[%clk 00:14:11]}
{[%emt 00:00:30]} O-O-O {[%clk 00:05:21]} {[%emt 00:00:57]} 12. Be3 {[%clk
00:13:51]} {[%emt 00:00:23]} Ng4 {[%clk 00:04:53]} {[%emt 00:00:28]} 13. Bg1
{[%clk 00:13:13]} {[%emt 00:00:43]} h5 {[%clk 00:03:36]} {[%emt 00:01:21]} 14.
h3 {[%clk 00:12:58]} {[%emt 00:00:18]} Nh6 {[%clk 00:03:19]} {[%emt 00:00:19]}
15. Rc1 {[%clk 00:11:18]} {[%emt 00:01:44]} b6 {[%clk 00:03:00]} {[%emt
00:00:22]} 16. Qe2 {[%clk 00:10:44]} {[%emt 00:00:36]} f5 {[%clk 00:02:14]}
{[%emt 00:00:50]} 17. Rfd1 {[%clk 00:10:02]} {[%emt 00:00:44]} e5 {[%clk
00:01:35]} {[%emt 00:00:43]} 18. d4 {[%clk 00:09:08]} {[%emt 00:00:58]} exd4
{[%emt 00:00:13]} 19. cxd4 {[%emt 00:00:01]} fxe4 {[%clk 00:01:06]} {[%emt
00:00:17]} 20. Qxe4 {[%clk 00:08:34]} {[%emt 00:00:37]} Nf5 {[%clk 00:01:04]}
{[%emt 00:00:05]} 21. dxc5 {[%clk 00:07:49]} {[%emt 00:00:48]} Rde8 {[%clk
00:00:58]} {[%emt 00:00:09]} 22. Qa4 {[%clk 00:06:22]} {[%emt 00:01:30]} Qb7
{[%clk 00:00:26]} {[%emt 00:00:36]} 23. cxd6 {[%clk 00:05:51]} {[%emt
00:00:33]} Rd8 {[%clk 00:00:23]} {[%emt 00:00:05]} 24. Nb4 {[%clk 00:05:19]}
{[%emt 00:00:36]} Kd7 {[%clk 00:00:10]} {[%emt 00:00:17]} 25. Rxc6 {[%clk
00:05:09]} {[%emt 00:00:12]} 1-0

[Event "Jeux du Barreau 2019"]
[Site "Paris, France"]
[Date "2019.07.10"]
[Round "7.5"]
[White "Mangenot, Valentin"]
[Black "Levy, David"]
[Result "1/2-1/2"]
[TimeControl "15+3"]
[WhiteElo "1405"]
[BlackElo "1511"]

1. d4 {[%clk 00:15:03]} c6 {[%clk 00:15:03]} {[%emt 00:59:09]} 2. c4 {[%clk
00:15:02]} {[%emt 00:00:06]} d5 {[%clk 00:15:04]} {[%emt 00:00:01]} 3. cxd5
{[%clk 00:14:42]} {[%emt 00:00:23]} Qxd5 {[%clk 00:15:06]} {[%emt 00:00:02]} 4.
Nc3 {[%clk 00:14:43]} {[%emt 00:00:02]} Qa5 {[%clk 00:15:08]} 5. Nf3 {[%clk
00:14:24]} {[%emt 00:00:22]} Bg4 {[%clk 00:15:07]} {[%emt 00:00:03]} 6. e3
{[%clk 00:14:25]} {[%emt 00:00:03]} Nf6 {[%clk 00:15:09]} {[%emt 00:00:01]} 7.
Bd3 {[%clk 00:13:54]} {[%emt 00:00:34]} e6 {[%clk 00:15:08]} {[%emt 00:00:04]}
8. O-O {[%clk 00:13:51]} {[%emt 00:00:06]} Be7 {[%clk 00:15:07]} {[%emt
00:00:05]} 9. Bd2 {[%clk 00:13:11]} {[%emt 00:00:42]} O-O {[%clk 00:14:23]}
{[%emt 00:00:48]} 10. Re1 {[%clk 00:12:57]} {[%emt 00:00:16]} Nbd7 {[%clk
00:14:16]} {[%emt 00:00:10]} 11. e4 {[%clk 00:12:53]} {[%emt 00:00:07]} e5
{[%clk 00:09:45]} {[%emt 00:04:35]} 12. d5 {[%clk 00:12:19]} {[%emt 00:00:38]}
cxd5 {[%clk 00:09:45]} {[%emt 00:00:02]} 13. Nxd5 {[%clk 00:11:50]} {[%emt
00:00:32]} Qd8 {[%clk 00:09:47]} 14. Nxe7+ {[%clk 00:11:38]} {[%emt 00:00:13]}
Qxe7 {[%clk 00:09:49]} {[%emt 00:00:02]} 15. a3 {[%clk 00:11:41]} Rfd8 {[%clk
00:08:58]} {[%emt 00:01:02]} 16. Bb4 {[%clk 00:11:39]} {[%emt 00:00:03]} Qe6
{[%clk 00:09:00]} {[%emt 00:00:01]} 17. Rc1 {[%clk 00:11:27]} {[%emt 00:00:14]}
Nb6 {[%clk 00:07:48]} {[%emt 00:01:15]} 18. Qe2 {[%clk 00:11:06]} {[%emt
00:00:24]} Nh5 {[%clk 00:06:17]} {[%emt 00:01:34]} 19. h3 {[%clk 00:10:50]}
{[%emt 00:00:18]} Bxf3 {[%clk 00:06:19]} {[%emt 00:00:02]} 20. Qxf3 {[%clk
00:10:52]} Nf4 {[%clk 00:06:21]} {[%emt 00:00:01]} 21. Bc2 {[%emt 00:00:57]}
Rac8 {[%emt 00:00:31]} 22. Bb3 {[%clk 00:10:00]} {[%emt 00:00:10]} Qf6 {[%clk
00:05:07]} {[%emt 00:00:39]} 23. Red1 {[%clk 00:08:55]} {[%emt 00:01:08]} Ne6
{[%clk 00:04:18]} {[%emt 00:00:52]} 24. Rxd8+ {[%clk 00:08:38]} {[%emt
00:00:20]} Rxd8 {[%clk 00:04:20]} {[%emt 00:00:01]} 25. Qxf6 {[%clk 00:07:34]}
{[%emt 00:01:07]} gxf6 {[%clk 00:04:22]} {[%emt 00:00:01]} 26. Bxe6 {[%clk
00:07:00]} {[%emt 00:00:37]} fxe6 {[%emt 00:00:05]} 27. Be7 {[%clk 00:06:56]}
{[%emt 00:00:04]} Rd4 {[%clk 00:03:54]} {[%emt 00:00:32]} 28. Bxf6 {[%clk
00:06:44]} {[%emt 00:00:15]} Rxe4 {[%emt 00:00:48]} 29. Kf1 {[%clk 00:05:37]}
{[%emt 00:00:23]} Kf7 {[%clk 00:03:57]} {[%emt 00:00:01]} 30. Bd8 {[%clk
00:05:24]} {[%emt 00:00:15]} Nd5 {[%clk 00:03:53]} {[%emt 00:00:08]} 31. Re1
{[%clk 00:05:03]} {[%emt 00:00:24]} Rxe1+ {[%clk 00:03:42]} {[%emt 00:00:14]}
32. Kxe1 {[%clk 00:05:03]} {[%emt 00:00:02]} Nf4 {[%clk 00:03:34]} {[%emt
00:00:11]} 33. Kf1 {[%clk 00:04:45]} {[%emt 00:00:22]} h5 {[%clk 00:03:16]}
{[%emt 00:00:20]} 34. g3 {[%clk 00:04:40]} {[%emt 00:00:08]} Nd3 {[%clk
00:03:15]} {[%emt 00:00:03]} 35. b3 {[%clk 00:03:36]} {[%emt 00:01:08]} Kg6
{[%clk 00:03:12]} {[%emt 00:00:07]} 36. b4 {[%clk 00:03:17]} {[%emt 00:00:22]}
Kf5 {[%clk 00:03:13]} {[%emt 00:00:01]} 37. Ke2 {[%clk 00:03:17]} {[%emt
00:00:03]} Nb2 {[%clk 00:03:04]} {[%emt 00:00:13]} 38. Bc7 {[%clk 00:03:02]}
{[%emt 00:00:16]} Nc4 {[%clk 00:02:54]} {[%emt 00:00:12]} 39. Kd3 {[%clk
00:02:47]} {[%emt 00:00:19]} Nxa3 {[%clk 00:02:55]} {[%emt 00:00:03]} 40. Bb8
{[%clk 00:02:10]} {[%emt 00:00:40]} a6 {[%clk 00:02:57]} {[%emt 00:00:01]} 41.
g4+ {[%clk 00:01:41]} {[%emt 00:00:32]} hxg4 {[%clk 00:02:57]} {[%emt
00:00:03]} 42. hxg4+ {[%clk 00:01:43]} {[%emt 00:00:01]} Kxg4 {[%clk 00:02:59]}
{[%emt 00:00:02]} 43. Bxe5 {[%clk 00:01:43]} {[%emt 00:00:03]} Kf5 {[%clk
00:02:51]} {[%emt 00:00:11]} 44. f4 {[%clk 00:01:32]} {[%emt 00:00:13]} Nb5
{[%clk 00:02:53]} {[%emt 00:00:01]} 45. Kc4 {[%clk 00:01:29]} {[%emt 00:00:05]}
Na7 {[%clk 00:01:52]} {[%emt 00:01:07]} 46. Kc5 {[%clk 00:01:14]} {[%emt
00:00:16]} Nc6 {[%clk 00:01:54]} {[%emt 00:00:02]} 47. Bc7 {[%clk 00:01:01]}
{[%emt 00:00:14]} Ke4 {[%clk 00:01:22]} {[%emt 00:00:37]} 48. b5 {[%clk
00:00:52]} {[%emt 00:00:12]} axb5 {[%clk 00:01:24]} {[%emt 00:00:01]} 49. Kxb5
{[%clk 00:00:53]} {[%emt 00:00:02]} 1/2-1/2